fUSD/lending_fUSD_20260601
["ID","MTS","AMOUNT","RATE_DAILY","PERIOD"]
[423574637,1780246240000,-928.0,0.00013729,2]
[423574676,1780246240000,-150.0,0.00013846,2]
[423574604,1780246240000,-616.25,0.00013698,2]
[423574606,1780246240000,-616.25,0.00013698,2]
[423574608,1780246240000,-616.25,0.00013698,2]
[423574611,1780246240000,-616.25,0.00013698,2]
[423574617,1780246240000,-616.25,0.00013698,2]
[423574619,1780246240000,-616.25,0.00013698,2]
[423574639,1780246240000,-525.0,0.00013729,2]
[423574613,1780246240000,-616.25,0.00013698,2]
[423574623,1780246240000,-166.66,0.00013699,2]
[423574625,1780246240000,-200.0,0.00013699,2]
[423574629,1780246240000,-500.0,0.00013729,2]
[423574627,1780246240000,-5969.17411156,0.00013706,2]
[423574631,1780246240000,-1569.6,0.00013729,2]
[423574633,1780246240000,-1379.007,0.00013729,2]
[423574645,1780246240000,-1226.0,0.00013729,2]
[423574621,1780246240000,-616.25,0.00013698,2]
[423574687,1780246240000,-2417.0,0.00014023,5]
[423574649,1780246240000,-298.316198,0.00013729,2]
[423574683,1780246240000,-166.66,0.00013973,2]
[423574727,1780246240000,-292.895239,0.00014406,2]
[423574738,1780246240000,-151.0,0.00014655,2]
[423574740,1780246240000,-151.0,0.00014655,2]
[423574742,1780246240000,-151.0,0.00014655,2]
[423574729,1780246240000,-28266.56078131,0.00014413,2]
[423574730,1780246240000,-150.0,0.00014425,2]
[423574732,1780246240000,-150.0,0.00014475,2]
[423574734,1780246240000,-2000.0,0.00014482,2]
[423574736,1780246240000,-5969.17411156,0.00014502,2]
[423574746,1780246240000,-200.0,0.00014656,2]
[423574748,1780246240000,-150.0,0.00014685,2]
[423574750,1780246240000,-150.0,0.00014685,2]
[423574752,1780246240000,-153.77401671,0.00014685,2]
[423574754,1780246240000,-269.1557045,0.00014685,2]
[423574758,1780246240000,-5335.04453794,0.000147,2]
[423574760,1780246240000,-19239.04270211,0.000147,2]
[423574689,1780246240000,-1933.0,0.00014023,5]
[423574723,1780246240000,-200.0,0.00014384,2]
[423574725,1780246240000,-234.174528,0.00014406,2]
[423574744,1780246240000,-1000.0,0.00014656,2]
[423574721,1780246240000,-166.66,0.00014384,2]
[423574693,1780246240000,-150.0,0.00014056,2]
[423574719,1780246240000,-350.0,0.00014308,2]
[423574681,1780246240000,-150.0,0.00013951,2]
[423574685,1780246240000,-548.38063715,0.0001399,2]
[423574695,1780246240000,-5969.17411156,0.00014104,2]
[423574699,1780246240000,-626.01,0.00014117,2]
[423574697,1780246240000,-166.66,0.0001411,2]
[423574701,1780246240000,-28266.56078131,0.00014126,2]
[423574711,1780246240000,-217.93952729,0.00014297,2]
[423574691,1780246240000,-150.0,0.00014055,2]
[423574703,1780246240000,-236.67,0.00014222,2]
[423574705,1780246240000,-166.66,0.00014247,2]
[423574709,1780246240000,-150.0,0.00014265,2]
[423574707,1780246240000,-6732.367104,0.0001425,2]
[423574714,1780246240000,-1000.0,0.000143,2]
[423574715,1780246240000,-315.0,0.000143,2]
[423574716,1780246240000,-309.0,0.000143,2]
[423574756,1780246240000,-166.94462126,0.00014685,2]
[423574887,1780246242000,-500.0,0.00014799,2]
[423574891,1780246242000,-1569.6,0.00014799,2]
[423574886,1780246242000,-500.0,0.00014799,2]
[423574885,1780246242000,-150.0,0.00014795,2]
[423574890,1780246242000,-351.3,0.00014799,2]
[423574883,1780246242000,-386.0,0.00014779,2]
[423574884,1780246242000,-2206.35423903,0.0001479,2]
[423574878,1780246242000,-1100.0,0.00014726,2]
[423574880,1780246242000,-386.0,0.00014748,2]
[423574879,1780246242000,-386.0,0.00014727,2]
[423574876,1780246242000,-8483.5180792,0.000147,2]
[423574877,1780246242000,-350.0,0.00014716,2]
[423574875,1780246242000,-544.0,0.000147,2]
[423574888,1780246242000,-500.0,0.00014799,2]
[423574881,1780246242000,-386.0,0.00014765,2]
[423574894,1780246242000,-1569.6,0.00014799,2]
[423574882,1780246242000,-500.0,0.00014765,2]
[423574895,1780246242000,-1569.6,0.00014799,2]
[423574909,1780246242000,-606.26226977,0.00014799,2]
[423574902,1780246242000,-500.0,0.00014799,2]
[423574900,1780246242000,-500.0,0.00014799,2]
[423574906,1780246242000,-616.25,0.00014799,2]
[423574905,1780246242000,-616.25,0.00014799,2]
[423574904,1780246242000,-500.0,0.00014799,2]
[423574903,1780246242000,-500.0,0.00014799,2]
[423574901,1780246242000,-500.0,0.00014799,2]
[423574892,1780246242000,-1569.6,0.00014799,2]
[423574896,1780246242000,-1569.6,0.00014799,2]
[423574899,1780246242000,-500.0,0.00014799,2]
[423574908,1780246242000,-616.25,0.00014799,2]
[423574907,1780246242000,-616.25,0.00014799,2]
[423574897,1780246242000,-1569.6,0.00014799,2]
[423574889,1780246242000,-500.0,0.00014799,2]
[423574893,1780246242000,-1569.6,0.00014799,2]
[423574898,1780246242000,-500.0,0.00014799,2]
[423574912,1780246243000,-3556.69635863,0.000147,2]
[423574911,1780246243000,-932.0,0.00013729,2]
[423574913,1780246243000,-9.98773023,0.00014799,2]
[423574916,1780246243000,-4793.01225998,0.000148,2]
[423574915,1780246243000,-616.25,0.00014799,2]
[423574914,1780246243000,-616.25,0.00014799,2]
[423574917,1780246244000,-1082.03683268,0.000148,2]
[423574970,1780246248000,-824.12,0.000148,2]
[423574969,1780246248000,-820.89281996,0.000148,2]
[423574968,1780246248000,-2371.13090575,0.000147,2]
[423575468,1780246260000,500.0,0.0003013,120]
[423575472,1780246358000,1000.0,0.00030136,120]
[423575473,1780246358000,1000.0,0.00030136,120]
[423575474,1780246358000,1000.0,0.00030136,120]
[423575477,1780246359000,1000.0,0.00030136,120]
[423575476,1780246359000,1000.0,0.00030136,120]
[423575475,1780246359000,1000.0,0.00030136,120]
[423575478,1780246360000,362.87638398,0.00030136,120]
[423575481,1780246566000,-181.658,0.00011466,2]
[423575482,1780246566000,-389.342,0.00011466,2]
[423575486,1780246642000,500.0,0.0003013,120]
[423575487,1780246884000,177.96,8.735e-05,2]
[423575489,1780247021000,500.0,0.0003013,120]
[423575490,1780247064000,1000.00000001,0.00030136,120]
[423575491,1780247136000,5801.44376659,0.00030136,120]
[423575493,1780247217000,282.43,0.00030082,120]
[423575497,1780247340000,1000.0,0.00030136,120]
[423575502,1780247352000,-10000.0,0.00010844,2]
[423575501,1780247352000,-1657.82,0.00010844,2]
[423575500,1780247352000,-3763.0,0.00010844,2]
[423575499,1780247352000,-2595.28,0.00010683,2]
[423575498,1780247352000,-1983.9,0.00010565,2]
[423575503,1780247353000,-10000.0,0.00010844,2]
[423575504,1780247355000,-8342.18,0.00010844,2]
[423575505,1780247377000,1657.82,0.00010537,2]
[423575506,1780247396000,500.0,0.0003013,120]
[423575511,1780247431000,-2257.9992373,0.0001015,2]
[423575512,1780247431000,-570.10244735,0.00010537,2]
[423575530,1780247432000,-500.0,0.00011335,2]
[423575535,1780247432000,-500.0,0.00011335,2]
[423575538,1780247432000,-500.0,0.00011335,2]
[423575528,1780247432000,-2595.28,0.00011218,2]
[423575532,1780247432000,-500.0,0.00011335,2]
[423575536,1780247432000,-500.0,0.00011335,2]
[423575531,1780247432000,-500.0,0.00011335,2]
[423575529,1780247432000,-150.0,0.00011334,2]
[423575527,1780247432000,-1697.75,0.000112,2]
[423575519,1780247432000,-1200.0,0.00010945,2]
[423575525,1780247432000,-163.38,0.00011062,2]
[423575526,1780247432000,-500.0,0.00011064,2]
[423575522,1780247432000,-300.0,0.00010949,2]
[423575524,1780247432000,-2595.28,0.0001095,2]
[423575521,1780247432000,-308.35,0.00010946,2]
[423575520,1780247432000,-1966.339,0.00010946,2]
[423575518,1780247432000,-649.96,0.00010907,2]
[423575517,1780247432000,-374.69831535,0.00010537,2]
[423575533,1780247432000,-500.0,0.00011335,2]
[423575523,1780247432000,-300.0,0.00010949,2]
[423575534,1780247432000,-500.0,0.00011335,2]
[423575547,1780247432000,-144.13965948,0.00011599,2]
[423575539,1780247432000,-198.54658356,0.00011335,2]
[423575537,1780247432000,-500.0,0.00011335,2]
[423575558,1780247432000,-500.0,0.00011699,2]
[423575559,1780247432000,-292.47711107,0.00011699,2]
[423575556,1780247432000,-503.91201384,0.00011699,2]
[423575553,1780247432000,-400.0,0.000116,4]
[423575557,1780247432000,-323.45690747,0.00011699,2]
[423575555,1780247432000,-151.0,0.00011697,2]
[423575552,1780247432000,-1334.70347447,0.000116,2]
[423575551,1780247432000,-1682.30867738,0.000116,2]
[423575550,1780247432000,-775.75637362,0.000116,2]
[423575554,1780247432000,-160.0,0.0001164,2]
[423575546,1780247432000,-23090.38071423,0.00011599,2]
[423575540,1780247432000,-500.0,0.00011335,2]
[423575549,1780247432000,-32838.25087329,0.000116,2]
[423575541,1780247432000,-103282.87866051,0.00011337,2]
[423575543,1780247432000,-7169.72136637,0.00011385,2]
[423575542,1780247432000,-6008.01764137,0.00011385,2]
[423575560,1780247432000,-467.38959251,0.00011699,2]
[423575548,1780247432000,-810.81904843,0.000116,2]
[423575545,1780247432000,-169.26,0.00011528,2]
[423575544,1780247432000,-2595.28,0.00011485,2]
[423575572,1780247437000,-900.0,0.000117,4]
[423575567,1780247437000,-150.0,0.00011699,2]
[423575566,1780247437000,-215.61611719,0.00011689,2]
[423575569,1780247437000,-300.0,0.00011699,2]
[423575568,1780247437000,-300.0,0.00011699,2]
[423575571,1780247437000,-150.0,0.000117,2]
[423575573,1780247437000,-520.17342938,0.00011713,2]
[423575570,1780247437000,-300.0,0.00011699,2]
[423575575,1780247437000,-1855.55910639,0.00011752,2]
[423575576,1780247437000,-13177.73900772,0.00011775,2]
[423575577,1780247437000,-1300.0,0.000118,4]
[423575578,1780247437000,-156.47,0.00011813,2]
[423575580,1780247437000,-156.47,0.00011926,2]
[423575579,1780247437000,-1800.0,0.000119,4]
[423575581,1780247437000,-300.0,0.00011932,2]
[423575574,1780247437000,-739.72089361,0.00011752,2]
[423575582,1780247437000,-101640.58098646,0.00011933,2]
[423575627,1780247438000,-13177.73900772,0.00012947,2]
[423575625,1780247438000,-1003.94,0.00012939,2]
[423575623,1780247438000,-1003.94,0.0001287,2]
[423575626,1780247438000,-156.47,0.00012944,2]
[423575619,1780247438000,-156.47,0.00012718,2]
[423575621,1780247438000,-1003.94,0.000128,2]
[423575622,1780247438000,-156.47,0.00012831,2]
[423575624,1780247438000,-26517.0,0.00012904,2]
[423575618,1780247438000,-36631.01939868,0.000127,2]
[423575616,1780247438000,-156.47,0.00012605,2]
[423575617,1780247438000,-1003.94,0.00012661,2]
[423575620,1780247438000,-1003.94,0.00012731,2]
[423575628,1780247438000,-1003.94,0.00013008,2]
[423575632,1780247438000,-1003.94,0.00013078,2]
[423575629,1780247438000,-156.47,0.00013057,2]
[423575631,1780247438000,-8008.142287,0.0001307,2]
[423575634,1780247438000,-500.0,0.00013096,2]
[423575635,1780247438000,-177.96,0.00013102,2]
[423575636,1780247438000,-525.0,0.00013103,2]
[423575640,1780247438000,-2000.0,0.00013182,2]
[423575638,1780247438000,-1003.94,0.00013147,2]
[423575637,1780247438000,-1273.0,0.00013103,2]
[423575639,1780247438000,-292.895239,0.00013165,2]
[423575641,1780247438000,-1003.94,0.00013216,2]
[423575642,1780247438000,-150.0,0.00013216,2]
[423575607,1780247438000,-255.0,0.00012388,2]
[423575630,1780247438000,-36631.01939868,0.00013067,2]
[423575611,1780247438000,-1003.94,0.00012523,2]
[423575593,1780247438000,-1500000.0,0.00012015,2]
[423575615,1780247438000,-1003.94,0.00012592,2]
[423575584,1780247438000,-1329.10002741,0.00011939,2]
[423575583,1780247438000,-5898.16675138,0.00011939,2]
[423575585,1780247438000,-1930.0,0.0001194,5]
[423575586,1780247438000,-300.0,0.00011966,2]
[423575587,1780247438000,-36631.01939868,0.00011967,2]
[423575589,1780247438000,-300.0,0.00012014,2]
[423575588,1780247438000,-947.36226023,0.00012005,2]
[423575590,1780247438000,-300.0,0.00012014,2]
[423575592,1780247438000,-776.12834704,0.00012014,2]
[423575591,1780247438000,-300.0,0.00012014,2]
[423575646,1780247438000,-150.0,0.00013216,2]
[423575595,1780247438000,-344.85926138,0.00012109,2]
[423575594,1780247438000,-156.47,0.00012039,2]
[423575598,1780247438000,-934.45,0.00012198,2]
[423575597,1780247438000,-13177.73900772,0.00012166,2]
[423575600,1780247438000,-156.47,0.00012266,2]
[423575596,1780247438000,-156.47,0.00012153,2]
[423575601,1780247438000,-649.96,0.0001227,2]
[423575599,1780247438000,-357.95,0.00012221,2]
[423575602,1780247438000,-1892.23049418,0.00012304,2]
[423575603,1780247438000,-282.43,0.00012329,2]
[423575605,1780247438000,-36631.01939868,0.00012333,2]
[423575604,1780247438000,-300.0,0.00012332,2]
[423575606,1780247438000,-156.47,0.00012379,2]
[423575608,1780247438000,-150.0,0.00012405,2]
[423575609,1780247438000,-410.21,0.00012455,2]
[423575612,1780247438000,-13177.73900772,0.00012556,2]
[423575610,1780247438000,-156.47,0.00012492,2]
[423575643,1780247438000,-151.29500077,0.00013216,2]
[423575633,1780247438000,-10000.0,0.00013091,2]
[423575645,1780247438000,-150.0,0.00013216,2]
[423575679,1780247438000,-500.0,0.00013698,2]
[423575681,1780247438000,-508.41629767,0.00013698,2]
[423575682,1780247438000,-500.0,0.00013698,2]
[423575684,1780247438000,-500.0,0.00013698,2]
[423575685,1780247438000,-500.0,0.00013698,2]
[423575680,1780247438000,-500.0,0.00013698,2]
[423575683,1780247438000,-500.0,0.00013698,2]
[423575689,1780247438000,-500.0,0.00013698,2]
[423575687,1780247438000,-500.0,0.00013698,2]
[423575686,1780247438000,-500.0,0.00013698,2]
[423575690,1780247438000,-500.0,0.00013698,2]
[423575691,1780247438000,-500.0,0.00013698,2]
[423575692,1780247438000,-500.0,0.00013698,2]
[423575693,1780247438000,-500.0,0.00013698,2]
[423575696,1780247438000,-500.0,0.00013698,2]
[423575695,1780247438000,-174.18899724,0.00013698,2]
[423575702,1780247438000,-500.0,0.00013698,2]
[423575694,1780247438000,-500.0,0.00013698,2]
[423575699,1780247438000,-500.0,0.00013698,2]
[423575697,1780247438000,-500.0,0.00013698,2]
[423575701,1780247438000,-500.0,0.00013698,2]
[423575700,1780247438000,-500.0,0.00013698,2]
[423575703,1780247438000,-500.0,0.00013698,2]
[423575698,1780247438000,-500.0,0.00013698,2]
[423575705,1780247438000,-500.0,0.00013698,2]
[423575704,1780247438000,-500.0,0.00013698,2]
[423575644,1780247438000,-150.0,0.00013216,2]
[423575678,1780247438000,-500.0,0.00013698,2]
[423575676,1780247438000,-596.3382509,0.00013698,2]
[423575688,1780247438000,-500.0,0.00013698,2]
[423575672,1780247438000,-300.0,0.00013697,2]
[423575675,1780247438000,-933.69403119,0.00013698,2]
[423575648,1780247438000,-150.0,0.00013216,2]
[423575650,1780247438000,-1003.94,0.00013286,2]
[423575651,1780247438000,-150.0,0.00013308,2]
[423575649,1780247438000,-810.81904842,0.0001325,2]
[423575652,1780247438000,-418.0,0.00013313,2]
[423575653,1780247438000,-932.0,0.00013313,2]
[423575654,1780247438000,-13177.73900772,0.00013337,2]
[423575655,1780247438000,-1003.94,0.00013355,2]
[423575659,1780247438000,-150.0,0.000134,2]
[423575656,1780247438000,-500.0,0.00013356,2]
[423575660,1780247438000,-1003.94,0.00013424,2]
[423575663,1780247438000,-1003.94,0.00013494,2]
[423575662,1780247438000,-150.0,0.00013492,2]
[423575647,1780247438000,-150.0,0.00013216,2]
[423575657,1780247438000,-1200.0,0.00013356,2]
[423575658,1780247438000,-150.0,0.0001338,2]
[423575673,1780247438000,-263.39072739,0.00013698,2]
[423575674,1780247438000,-371.17983156,0.00013698,2]
[423575670,1780247438000,-649.96,0.00013633,2]
[423575677,1780247438000,-517.9,0.00013698,2]
[423575669,1780247438000,-1003.94,0.00013633,2]
[423575668,1780247438000,-150.0,0.00013584,2]
[423575667,1780247438000,-150.0,0.00013584,2]
[423575666,1780247438000,-150.0,0.00013584,2]
[423575665,1780247438000,-1003.94,0.00013563,2]
[423575664,1780247438000,-150.0,0.00013543,2]
[423575661,1780247438000,-36631.01939868,0.00013433,2]
[423575671,1780247438000,-150.0,0.00013675,2]
[423575750,1780247439000,-500.0,0.00013698,2]
[423575748,1780247439000,-500.0,0.00013698,2]
[423575746,1780247439000,-500.0,0.00013698,2]
[423575735,1780247439000,-1111.8,0.00013698,2]
[423575744,1780247439000,-1111.8,0.00013698,2]
[423575743,1780247439000,-1111.8,0.00013698,2]
[423575742,1780247439000,-1111.8,0.00013698,2]
[423575737,1780247439000,-1111.8,0.00013698,2]
[423575740,1780247439000,-1111.8,0.00013698,2]
[423575736,1780247439000,-1111.8,0.00013698,2]
[423575747,1780247439000,-500.0,0.00013698,2]
[423575745,1780247439000,-500.0,0.00013698,2]
[423575749,1780247439000,-500.0,0.00013698,2]
[423575757,1780247439000,-214.91,0.00013698,2]
[423575752,1780247439000,-500.0,0.00013698,2]
[423575753,1780247439000,-500.0,0.00013698,2]
[423575754,1780247439000,-500.0,0.00013698,2]
[423575755,1780247439000,-500.0,0.00013698,2]
[423575756,1780247439000,-500.0,0.00013698,2]
[423575759,1780247439000,-500.0,0.00013698,2]
[423575760,1780247439000,-245.62717302,0.00013698,2]
[423575762,1780247439000,-297.77646155,0.00013698,2]
[423575764,1780247439000,-500.0,0.00013698,2]
[423575758,1780247439000,-500.0,0.00013698,2]
[423575766,1780247439000,-500.0,0.00013698,2]
[423575763,1780247439000,-500.0,0.00013698,2]
[423575739,1780247439000,-1111.8,0.00013698,2]
[423575751,1780247439000,-500.0,0.00013698,2]
[423575738,1780247439000,-1111.8,0.00013698,2]
[423575761,1780247439000,-500.0,0.00013698,2]
[423575741,1780247439000,-1111.8,0.00013698,2]
[423575706,1780247439000,-500.0,0.00013698,2]
[423575709,1780247439000,-500.0,0.00013698,2]
[423575708,1780247439000,-500.0,0.00013698,2]
[423575710,1780247439000,-500.0,0.00013698,2]
[423575712,1780247439000,-500.0,0.00013698,2]
[423575711,1780247439000,-500.0,0.00013698,2]
[423575715,1780247439000,-500.0,0.00013698,2]
[423575714,1780247439000,-500.0,0.00013698,2]
[423575713,1780247439000,-500.0,0.00013698,2]
[423575718,1780247439000,-263.08171548,0.00013698,2]
[423575717,1780247439000,-500.0,0.00013698,2]
[423575716,1780247439000,-500.0,0.00013698,2]
[423575721,1780247439000,-500.0,0.00013698,2]
[423575719,1780247439000,-500.0,0.00013698,2]
[423575728,1780247439000,-500.0,0.00013698,2]
[423575720,1780247439000,-500.0,0.00013698,2]
[423575722,1780247439000,-500.0,0.00013698,2]
[423575723,1780247439000,-500.0,0.00013698,2]
[423575725,1780247439000,-500.0,0.00013698,2]
[423575726,1780247439000,-500.0,0.00013698,2]
[423575727,1780247439000,-500.0,0.00013698,2]
[423575724,1780247439000,-500.0,0.00013698,2]
[423575731,1780247439000,-287.24368182,0.00013698,2]
[423575730,1780247439000,-500.0,0.00013698,2]
[423575729,1780247439000,-500.0,0.00013698,2]
[423575733,1780247439000,-1111.8,0.00013698,2]
[423575732,1780247439000,-1111.8,0.00013698,2]
[423575734,1780247439000,-1111.8,0.00013698,2]
[423575767,1780247439000,-500.0,0.00013698,2]
[423575707,1780247439000,-500.0,0.00013698,2]
[423575769,1780247439000,-500.0,0.00013698,2]
[423575802,1780247439000,-500.0,0.00013698,2]
[423575803,1780247439000,-500.0,0.00013698,2]
[423575806,1780247439000,-500.0,0.00013698,2]
[423575807,1780247439000,-500.0,0.00013698,2]
[423575808,1780247439000,-500.0,0.00013698,2]
[423575813,1780247439000,-500.0,0.00013698,2]
[423575809,1780247439000,-500.0,0.00013698,2]
[423575815,1780247439000,-166.66,0.00013699,2]
[423575810,1780247439000,-500.0,0.00013698,2]
[423575816,1780247439000,-200.0,0.00013699,2]
[423575811,1780247439000,-500.0,0.00013698,2]
[423575812,1780247439000,-500.0,0.00013698,2]
[423575814,1780247439000,-500.0,0.00013698,2]
[423575817,1780247439000,-1003.94,0.00013702,2]
[423575819,1780247439000,-13177.73900772,0.00013728,2]
[423575818,1780247439000,-150.0,0.00013706,2]
[423575821,1780247439000,-3550.0,0.00013729,2]
[423575829,1780247439000,-151.0,0.00013834,2]
[423575820,1780247439000,-1379.007,0.00013729,2]
[423575822,1780247439000,-928.0,0.00013729,2]
[423575824,1780247439000,-150.0,0.00013767,2]
[423575826,1780247439000,-36631.01939868,0.000138,2]
[423575825,1780247439000,-1003.94,0.00013771,2]
[423575823,1780247439000,-236.67,0.00013762,2]
[423575827,1780247439000,-151.0,0.00013833,2]
[423575828,1780247439000,-151.0,0.00013833,2]
[423575765,1780247439000,-500.0,0.00013698,2]
[423575804,1780247439000,-500.0,0.00013698,2]
[423575799,1780247439000,-500.0,0.00013698,2]
[423575830,1780247439000,-166.66,0.00013836,2]
[423575805,1780247439000,-500.0,0.00013698,2]
[423575768,1780247439000,-500.0,0.00013698,2]
[423575770,1780247439000,-500.0,0.00013698,2]
[423575774,1780247439000,-500.0,0.00013698,2]
[423575781,1780247439000,-500.0,0.00013698,2]
[423575772,1780247439000,-500.0,0.00013698,2]
[423575775,1780247439000,-500.0,0.00013698,2]
[423575779,1780247439000,-500.0,0.00013698,2]
[423575780,1780247439000,-500.0,0.00013698,2]
[423575778,1780247439000,-500.0,0.00013698,2]
[423575777,1780247439000,-500.0,0.00013698,2]
[423575782,1780247439000,-500.0,0.00013698,2]
[423575783,1780247439000,-500.0,0.00013698,2]
[423575784,1780247439000,-500.0,0.00013698,2]
[423575776,1780247439000,-500.0,0.00013698,2]
[423575792,1780247439000,-500.0,0.00013698,2]
[423575797,1780247439000,-500.0,0.00013698,2]
[423575785,1780247439000,-500.0,0.00013698,2]
[423575800,1780247439000,-500.0,0.00013698,2]
[423575798,1780247439000,-500.0,0.00013698,2]
[423575796,1780247439000,-500.0,0.00013698,2]
[423575795,1780247439000,-500.0,0.00013698,2]
[423575794,1780247439000,-500.0,0.00013698,2]
[423575801,1780247439000,-500.0,0.00013698,2]
[423575793,1780247439000,-500.0,0.00013698,2]
[423575791,1780247439000,-500.0,0.00013698,2]
[423575787,1780247439000,-500.0,0.00013698,2]
[423575788,1780247439000,-583.21080373,0.00013698,2]
[423575789,1780247439000,-500.0,0.00013698,2]
[423575790,1780247439000,-500.0,0.00013698,2]
[423575871,1780247440000,-1000.0,0.000145,2]
[423575870,1780247440000,-200.0,0.00014494,2]
[423575872,1780247440000,-315.0,0.000145,2]
[423575876,1780247440000,-150.0,0.00014522,2]
[423575869,1780247440000,-151.0,0.00014486,2]
[423575865,1780247440000,-150.0,0.0001441,2]
[423575866,1780247440000,-413.61503396,0.00014432,2]
[423575857,1780247440000,-166.66,0.00014247,2]
[423575856,1780247440000,-150.0,0.00014226,2]
[423575875,1780247440000,-13177.73900772,0.00014509,2]
[423575867,1780247440000,-10259.85300746,0.00014486,2]
[423575863,1780247440000,-150.0,0.00014359,2]
[423575887,1780247440000,-151.0,0.00014656,2]
[423575874,1780247440000,-150.0,0.00014501,2]
[423575873,1780247440000,-309.0,0.000145,2]
[423575878,1780247440000,-36631.01939868,0.00014533,2]
[423575877,1780247440000,-500.0,0.00014533,2]
[423575879,1780247440000,-151.0,0.00014581,2]
[423575882,1780247440000,-151.0,0.00014656,2]
[423575883,1780247440000,-151.72,0.00014656,2]
[423575886,1780247440000,-151.1,0.00014656,2]
[423575881,1780247440000,-150.0,0.00014593,2]
[423575880,1780247440000,-395.16582728,0.00014585,2]
[423575885,1780247440000,-151.0,0.00014656,2]
[423575884,1780247440000,-151.0,0.00014656,2]
[423575862,1780247440000,-350.0,0.00014327,2]
[423575868,1780247440000,-4917.82941975,0.00014486,2]
[423575861,1780247440000,-150.0,0.00014318,2]
[423575846,1780247440000,-548.38063715,0.0001399,2]
[423575864,1780247440000,-166.66,0.00014384,2]
[423575888,1780247440000,-151.0,0.00014656,2]
[423575831,1780247440000,-1003.94,0.00013841,2]
[423575832,1780247440000,-150.0,0.00013859,2]
[423575841,1780247440000,-150.0,0.00013951,2]
[423575837,1780247440000,-1111.8,0.00013937,2]
[423575836,1780247440000,-500.0,0.00013937,2]
[423575835,1780247440000,-2300.0,0.000139,5]
[423575834,1780247440000,-150.0,0.00013869,2]
[423575838,1780247440000,-500.0,0.00013937,2]
[423575839,1780247440000,-500.0,0.00013937,2]
[423575840,1780247440000,-150.0,0.00013951,2]
[423575842,1780247440000,-150.0,0.00013951,2]
[423575859,1780247440000,-150.0,0.00014318,2]
[423575843,1780247440000,-150.0,0.00013951,2]
[423575844,1780247440000,-150.0,0.00013951,2]
[423575849,1780247440000,-150.0,0.00014032,2]
[423575847,1780247440000,-250.0,0.00014,2]
[423575850,1780247440000,-150.0,0.00014042,2]
[423575853,1780247440000,-150.0,0.00014134,2]
[423575851,1780247440000,-166.66,0.0001411,2]
[423575848,1780247440000,-2412.0,0.00014023,5]
[423575852,1780247440000,-13177.73900772,0.00014118,2]
[423575854,1780247440000,-36631.01939868,0.00014167,2]
[423575858,1780247440000,-6732.367104,0.0001425,2]
[423575855,1780247440000,-150.0,0.00014195,2]
[423575860,1780247440000,-150.0,0.00014318,2]
[423575845,1780247440000,-166.66,0.00013973,2]
[423575889,1780247440000,-151.0,0.00014656,2]
[423575833,1780247440000,-1229.78214246,0.00013861,2]
[423575893,1780247440000,-151.0,0.00014656,2]
[423575919,1780247440000,-500.0,0.00014684,2]
[423575918,1780247440000,-500.0,0.00014684,2]
[423575921,1780247440000,-500.0,0.00014684,2]